fUST/lending_fUST_20260625
["ID","MTS","AMOUNT","RATE_DAILY","PERIOD"]
[426336505,1782321065000,-3000.0,0.0006901,120]
[426336507,1782321065000,-3000.0,0.0006903,120]
[426336503,1782321065000,-160.0,0.00068619,2]
[426336511,1782321065000,-1000.0,0.0007,120]
[426336509,1782321065000,-1000.0,0.00069744,120]
[426336536,1782321065000,-594.31,0.00071232,120]
[426336534,1782321065000,-500.0,0.00071232,120]
[426336533,1782321065000,-500.0,0.00071232,120]
[426336558,1782321065000,-500.0,0.00073972,120]
[426336564,1782321065000,-500.0,0.00073972,120]
[426336570,1782321065000,-500.0,0.00073972,120]
[426336563,1782321065000,-500.0,0.00073972,120]
[426336568,1782321065000,-500.0,0.00073972,120]
[426336567,1782321065000,-1228.02,0.00073972,120]
[426336565,1782321065000,-1249.46,0.00073972,120]
[426336569,1782321065000,-500.0,0.00073972,120]
[426336571,1782321065000,-500.0,0.00073972,120]
[426336572,1782321065000,-500.0,0.00073972,120]
[426336573,1782321065000,-500.0,0.00073972,120]
[426336574,1782321065000,-500.0,0.00073972,120]
[426336575,1782321065000,-500.0,0.00073972,120]
[426336579,1782321065000,-625.0,0.00073972,6]
[426336576,1782321065000,-500.0,0.00073972,120]
[426336577,1782321065000,-625.0,0.00073972,120]
[426336578,1782321065000,-594.31,0.00073972,120]
[426336580,1782321065000,-500.0,0.00073972,120]
[426336582,1782321065000,-500.0,0.00073972,120]
[426336581,1782321065000,-876.42,0.00073972,120]
[426336537,1782321065000,-383.50976954,0.00071232,120]
[426336557,1782321065000,-500.0,0.00073972,120]
[426336555,1782321065000,-173.468,0.00072552,120]
[426336566,1782321065000,-500.0,0.00073972,120]
[426336560,1782321065000,-500.0,0.00073972,120]
[426336535,1782321065000,-625.0,0.00071232,120]
[426336559,1782321065000,-500.0,0.00073972,120]
[426336539,1782321065000,-500.0,0.00071232,120]
[426336538,1782321065000,-625.0,0.00071232,6]
[426336540,1782321065000,-876.42,0.00071232,120]
[426336549,1782321065000,-165.90553205,0.00071232,120]
[426336550,1782321065000,-977.13,0.00071232,120]
[426336542,1782321065000,-500.0,0.00071232,120]
[426336543,1782321065000,-500.0,0.00071232,120]
[426336541,1782321065000,-500.0,0.00071232,120]
[426336546,1782321065000,-500.0,0.00071232,120]
[426336544,1782321065000,-500.0,0.00071232,30]
[426336548,1782321065000,-500.0,0.00071232,120]
[426336545,1782321065000,-500.0,0.00071232,120]
[426336547,1782321065000,-500.0,0.00071232,120]
[426336552,1782321065000,-554.08,0.00071232,120]
[426336551,1782321065000,-500.0,0.00071232,120]
[426336553,1782321065000,-746.21,0.00071232,120]
[426336554,1782321065000,-1010.0,0.000719,120]
[426336562,1782321065000,-384.55000039,0.00073972,120]
[426336556,1782321065000,-500.0,0.00073972,120]
[426336561,1782321065000,-500.0,0.00073972,120]
[426336619,1782321066000,-500.0,0.00076712,120]
[426336618,1782321066000,-625.0,0.00076712,6]
[426336626,1782321066000,-500.0,0.00076712,120]
[426336622,1782321066000,-500.0,0.00076712,120]
[426336624,1782321066000,-500.0,0.00076712,30]
[426336614,1782321066000,-540.00000008,0.00076712,120]
[426336616,1782321066000,-625.0,0.00076712,120]
[426336613,1782321066000,-500.0,0.00076712,120]
[426336617,1782321066000,-594.31,0.00076712,120]
[426336621,1782321066000,-500.0,0.00076712,120]
[426336615,1782321066000,-462.480076,0.00076712,120]
[426336620,1782321066000,-876.42,0.00076712,120]
[426336641,1782321066000,-200.0,0.0007871,2]
[426336625,1782321066000,-500.0,0.00076712,120]
[426336628,1782321066000,-977.13,0.00076712,120]
[426336627,1782321066000,-500.0,0.00076712,120]
[426336629,1782321066000,-500.0,0.00076712,120]
[426336631,1782321066000,-746.21,0.00076712,120]
[426336640,1782321066000,-200.0,0.0007871,2]
[426336639,1782321066000,-200.0,0.0007871,2]
[426336642,1782321066000,-333.0,0.0007871,2]
[426336632,1782321066000,-1000.0,0.00076719,120]
[426336633,1782321066000,-1000.0,0.00076719,120]
[426336612,1782321066000,-500.0,0.00076712,120]
[426336623,1782321066000,-500.0,0.00076712,120]
[426336609,1782321066000,-500.0,0.00076712,120]
[426336587,1782321066000,-500.0,0.00073972,120]
[426336604,1782321066000,-500.0,0.00076712,120]
[426336586,1782321066000,-500.0,0.00073972,120]
[426336585,1782321066000,-500.0,0.00073972,30]
[426336584,1782321066000,-500.0,0.00073972,120]
[426336583,1782321066000,-500.0,0.00073972,120]
[426336588,1782321066000,-500.0,0.00073972,120]
[426336590,1782321066000,-977.13,0.00073972,120]
[426336593,1782321066000,-746.21,0.00073972,120]
[426336589,1782321066000,-194.72503733,0.00073972,120]
[426336594,1782321066000,-154.33698135,0.00074023,52]
[426336592,1782321066000,-554.08,0.00073972,120]
[426336595,1782321066000,-3000.0,0.000745,120]
[426336591,1782321066000,-500.0,0.00073972,120]
[426336598,1782321066000,-500.0,0.00076712,120]
[426336597,1782321066000,-500.0,0.00076712,120]
[426336596,1782321066000,-745.0,0.00075808,2]
[426336611,1782321066000,-500.0,0.00076712,120]
[426336600,1782321066000,-500.0,0.00076712,120]
[426336599,1782321066000,-426.37891024,0.00076712,120]
[426336610,1782321066000,-500.0,0.00076712,120]
[426336601,1782321066000,-500.0,0.00076712,120]
[426336603,1782321066000,-500.0,0.00076712,120]
[426336608,1782321066000,-500.0,0.00076712,120]
[426336607,1782321066000,-1228.02,0.00076712,120]
[426336606,1782321066000,-500.0,0.00076712,120]
[426336605,1782321066000,-1249.46,0.00076712,120]
[426336602,1782321066000,-500.0,0.00076712,120]
[426336638,1782321066000,-200.0,0.0007871,2]
[426336630,1782321066000,-554.08,0.00076712,120]
[426336636,1782321066000,-200.0,0.0007871,2]
[426336671,1782321066000,-500.0,0.00079452,120]
[426336674,1782321066000,-554.08,0.00079452,120]
[426336673,1782321066000,-500.0,0.00079452,120]
[426336669,1782321066000,-500.0,0.00079452,120]
[426336668,1782321066000,-416.07848808,0.00079452,30]
[426336675,1782321066000,-746.21,0.00079452,120]
[426336679,1782321066000,-156.0,0.00080175,30]
[426336676,1782321066000,-1000.0,0.0008,120]
[426336677,1782321066000,-200.0,0.0008,120]
[426336678,1782321066000,-1774.224102,0.0008,120]
[426336687,1782321066000,-500.0,0.00082191,120]
[426336686,1782321066000,-500.0,0.00082191,120]
[426336682,1782321066000,-156.0,0.00081175,30]
[426336683,1782321066000,-156.0,0.00082175,30]
[426336684,1782321066000,-500.0,0.00082191,120]
[426336685,1782321066000,-500.0,0.00082191,120]
[426336681,1782321066000,-153.87792411,0.00080828,30]
[426336694,1782321066000,-159.43622504,0.00082191,120]
[426336689,1782321066000,-500.0,0.00082191,120]
[426336690,1782321066000,-500.0,0.00082191,120]
[426336691,1782321066000,-1249.46,0.00082191,120]
[426336693,1782321066000,-1228.02,0.00082191,120]
[426336688,1782321066000,-500.0,0.00082191,120]
[426336692,1782321066000,-500.0,0.00082191,120]
[426336634,1782321066000,-1234.4823497,0.00077863,8]
[426336670,1782321066000,-500.0,0.00079452,120]
[426336672,1782321066000,-977.13,0.00079452,120]
[426336680,1782321066000,-154.33698135,0.00080516,56]
[426336663,1782321066000,-569.24807601,0.00079452,120]
[426336667,1782321066000,-500.0,0.00079452,120]
[426336635,1782321066000,-200.0,0.0007871,2]
[426336637,1782321066000,-200.0,0.0007871,2]
[426336648,1782321066000,-500.0,0.00079452,120]
[426336647,1782321066000,-500.0,0.00079452,120]
[426336649,1782321066000,-500.0,0.00079452,120]
[426336644,1782321066000,-500.0,0.00079452,120]
[426336651,1782321066000,-1249.46,0.00079452,120]
[426336645,1782321066000,-500.0,0.00079452,120]
[426336646,1782321066000,-500.0,0.00079452,120]
[426336643,1782321066000,-486.164,0.00078808,2]
[426336654,1782321066000,-224.40602681,0.00079452,120]
[426336652,1782321066000,-500.0,0.00079452,120]
[426336650,1782321066000,-500.0,0.00079452,120]
[426336653,1782321066000,-1228.02,0.00079452,120]
[426336664,1782321066000,-876.42,0.00079452,120]
[426336662,1782321066000,-625.0,0.00079452,6]
[426336661,1782321066000,-594.31,0.00079452,120]
[426336660,1782321066000,-625.0,0.00079452,120]
[426336659,1782321066000,-500.0,0.00079452,120]
[426336665,1782321066000,-500.0,0.00079452,120]
[426336655,1782321066000,-500.0,0.00079452,120]
[426336658,1782321066000,-500.0,0.00079452,120]
[426336666,1782321066000,-500.0,0.00079452,120]
[426336656,1782321066000,-500.0,0.00079452,120]
[426336657,1782321066000,-500.0,0.00079452,120]
[426336736,1782321067000,-876.42,0.00084931,120]
[426336737,1782321067000,-500.0,0.00084931,120]
[426336731,1782321067000,-500.0,0.00084931,120]
[426336732,1782321067000,-500.0,0.00084931,120]
[426336730,1782321067000,-500.0,0.00084931,120]
[426336735,1782321067000,-625.0,0.00084931,6]
[426336733,1782321067000,-625.0,0.00084931,120]
[426336734,1782321067000,-594.31,0.00084931,120]
[426336728,1782321067000,-500.0,0.00084931,120]
[426336726,1782321067000,-500.0,0.00084931,120]
[426336727,1782321067000,-1249.46,0.00084931,120]
[426336729,1782321067000,-1228.02,0.00084931,120]
[426336738,1782321067000,-500.0,0.00084931,120]
[426336753,1782321067000,-500.0,0.00087671,120]
[426336749,1782321067000,-5204.47402158,0.00087617,28]
[426336750,1782321067000,-500.0,0.00087671,120]
[426336740,1782321067000,-551.82352382,0.00084931,120]
[426336741,1782321067000,-977.13,0.00084931,120]
[426336747,1782321067000,-275.4502443,0.00086592,12]
[426336743,1782321067000,-554.08,0.00084931,120]
[426336744,1782321067000,-746.21,0.00084931,120]
[426336748,1782321067000,-154.33698135,0.00087457,59]
[426336742,1782321067000,-500.0,0.00084931,120]
[426336745,1782321067000,-156.0,0.00085175,30]
[426336746,1782321067000,-156.0,0.00086175,30]
[426336751,1782321067000,-500.0,0.00087671,120]
[426336725,1782321067000,-500.0,0.00084931,120]
[426336739,1782321067000,-500.0,0.00084931,120]
[426336718,1782321067000,-579.0,0.0008439,120]
[426336697,1782321067000,-644.83384882,0.00082191,120]
[426336720,1782321067000,-500.0,0.00084931,120]
[426336699,1782321067000,-625.0,0.00082191,120]
[426336760,1782321067000,-500.0,0.00087671,120]
[426336700,1782321067000,-594.31,0.00082191,120]
[426336698,1782321067000,-500.0,0.00082191,120]
[426336695,1782321067000,-500.0,0.00082191,120]
[426336696,1782321067000,-500.0,0.00082191,120]
[426336712,1782321067000,-746.21,0.00082191,120]
[426336702,1782321067000,-876.42,0.00082191,120]
[426336701,1782321067000,-625.0,0.00082191,6]
[426336707,1782321067000,-500.0,0.00082191,120]
[426336705,1782321067000,-368.30849221,0.00082191,120]
[426336711,1782321067000,-554.08,0.00082191,120]
[426336706,1782321067000,-500.0,0.00082191,120]
[426336704,1782321067000,-500.0,0.00082191,120]
[426336708,1782321067000,-214.02478219,0.00082191,120]
[426336709,1782321067000,-977.13,0.00082191,120]
[426336710,1782321067000,-500.0,0.00082191,120]
[426336703,1782321067000,-500.0,0.00082191,120]
[426336713,1782321067000,-500.89691844,0.00082192,120]
[426336715,1782321067000,-156.0,0.00084175,30]
[426336723,1782321067000,-500.0,0.00084931,120]
[426336714,1782321067000,-156.0,0.00083175,30]
[426336719,1782321067000,-1799.839287,0.000845,120]
[426336716,1782321067000,-1000.0,0.0008439,120]
[426336724,1782321067000,-500.0,0.00084931,120]
[426336721,1782321067000,-500.0,0.00084931,120]
[426336722,1782321067000,-500.0,0.00084931,120]
[426336717,1782321067000,-1000.0,0.0008439,120]
[426336755,1782321067000,-500.0,0.00087671,120]
[426336761,1782321067000,-500.0,0.00087671,120]
[426336759,1782321067000,-1228.02,0.00087671,120]
[426336785,1782321067000,-500.0,0.0009041,120]
[426336786,1782321067000,-500.0,0.0009041,120]
[426336793,1782321067000,-500.0,0.0009041,120]
[426336803,1782321067000,-500.0,0.0009315,120]
[426336792,1782321067000,-500.0,0.0009041,120]
[426336797,1782321067000,-746.21,0.0009041,120]
[426336796,1782321067000,-554.08,0.0009041,120]
[426336801,1782321067000,-500.0,0.0009315,120]
[426336794,1782321067000,-977.13,0.0009041,120]
[426336798,1782321067000,-1000.0,0.00092829,120]
[426336800,1782321067000,-1000.0,0.00092829,120]
[426336795,1782321067000,-349.24477414,0.0009041,120]
[426336802,1782321067000,-487.90746068,0.0009315,120]
[426336788,1782321067000,-625.0,0.0009041,120]
[426336799,1782321067000,-1000.0,0.00092829,120]
[426336807,1782321067000,-1249.46,0.0009315,120]
[426336810,1782321067000,-500.0,0.0009315,120]
[426336806,1782321067000,-500.0,0.0009315,120]
[426336811,1782321067000,-500.0,0.0009315,120]
[426336808,1782321067000,-500.0,0.0009315,120]
[426336804,1782321067000,-500.0,0.0009315,120]
[426336812,1782321067000,-625.0,0.0009315,120]
[426336809,1782321067000,-1228.02,0.0009315,120]
[426336814,1782321067000,-625.0,0.0009315,6]
[426336813,1782321067000,-594.31,0.0009315,120]
[426336752,1782321067000,-500.0,0.00087671,120]
[426336817,1782321067000,-500.0,0.0009315,120]
[426336816,1782321067000,-500.0,0.0009315,120]
[426336805,1782321067000,-525.82,0.0009315,120]
[426336783,1782321067000,-500.0,0.0009041,120]
[426336815,1782321067000,-876.42,0.0009315,120]
[426336780,1782321067000,-500.0,0.0009041,120]
[426336784,1782321067000,-1228.02,0.0009041,120]
[426336756,1782321067000,-500.0,0.00087671,120]
[426336758,1782321067000,-500.0,0.00087671,120]
[426336757,1782321067000,-1249.46,0.00087671,120]
[426336763,1782321067000,-625.0,0.00087671,120]
[426336762,1782321067000,-500.0,0.00087671,120]
[426336764,1782321067000,-594.31,0.00087671,120]
[426336765,1782321067000,-625.0,0.00087671,6]
[426336769,1782321067000,-500.0,0.00087671,120]
[426336766,1782321067000,-876.42,0.00087671,120]
[426336773,1782321067000,-746.21,0.00087671,120]
[426336772,1782321067000,-554.08,0.00087671,120]
[426336771,1782321067000,-500.0,0.00087671,120]
[426336768,1782321067000,-500.0,0.00087671,120]
[426336754,1782321067000,-500.0,0.00087671,120]
[426336770,1782321067000,-977.13,0.00087671,120]
[426336767,1782321067000,-502.3173253,0.00087671,120]
[426336781,1782321067000,-509.33,0.0009041,120]
[426336787,1782321067000,-500.0,0.0009041,120]
[426336782,1782321067000,-1249.46,0.0009041,120]
[426336791,1782321067000,-876.42,0.0009041,120]
[426336789,1782321067000,-594.31,0.0009041,120]
[426336778,1782321067000,-500.0,0.0009041,120]
[426336779,1782321067000,-500.0,0.0009041,120]
[426336774,1782321067000,-2000.0,0.0009,120]
[426336777,1782321067000,-500.0,0.0009041,120]
[426336775,1782321067000,-500.0,0.0009041,120]
[426336776,1782321067000,-500.0,0.0009041,120]
[426336790,1782321067000,-625.0,0.0009041,6]
[426336869,1782321068000,-500.0,0.00101369,120]
[426336859,1782321068000,-594.31,0.0009863,120]
[426336856,1782321068000,-500.0,0.0009863,120]
[426336854,1782321068000,-500.0,0.0009863,120]
[426336853,1782321068000,-1249.46,0.0009863,120]
[426336852,1782321068000,-500.0,0.0009863,120]
[426336855,1782321068000,-1228.02,0.0009863,120]
[426336846,1782321068000,-250.0,0.00097696,2]
[426336848,1782321068000,-361.0,0.00097696,2]
[426336858,1782321068000,-625.0,0.0009863,120]
[426336851,1782321068000,-500.0,0.0009863,120]
[426336849,1782321068000,-500.0,0.0009863,120]
[426336873,1782321068000,-1228.02,0.00101369,120]
[426336861,1782321068000,-876.42,0.0009863,120]
[426336868,1782321068000,-500.0,0.00101369,120]
[426336866,1782321068000,-200.0,0.001,120]
[426336863,1782321068000,-977.13,0.0009863,120]
[426336865,1782321068000,-746.21,0.0009863,120]
[426336864,1782321068000,-554.08,0.0009863,120]
[426336862,1782321068000,-500.0,0.0009863,120]
[426336867,1782321068000,-500.0,0.00101369,120]
[426336870,1782321068000,-500.0,0.00101369,120]
[426336871,1782321068000,-1249.46,0.00101369,120]
[426336872,1782321068000,-500.0,0.00101369,120]
[426336875,1782321068000,-500.0,0.00101369,120]
[426336857,1782321068000,-500.0,0.0009863,120]
[426336860,1782321068000,-625.0,0.0009863,6]
[426336850,1782321068000,-500.0,0.0009863,120]
[426336832,1782321068000,-594.31,0.0009589,120]
[426336841,1782321068000,-250.0,0.00097696,2]
[426336824,1782321068000,-500.0,0.0009589,120]
[426336818,1782321068000,-977.13,0.0009315,120]
[426336821,1782321068000,-154.33698135,0.00094846,63]
[426336823,1782321068000,-500.0,0.0009589,120]
[426336819,1782321068000,-554.08,0.0009315,120]
[426336820,1782321068000,-746.21,0.0009315,120]
[426336822,1782321068000,-500.0,0.0009589,120]
[426336825,1782321068000,-500.0,0.0009589,120]
[426336830,1782321068000,-500.0,0.0009589,120]
[426336833,1782321068000,-625.0,0.0009589,6]
[426336827,1782321068000,-500.0,0.0009589,120]
[426336828,1782321068000,-1228.02,0.0009589,120]
[426336847,1782321068000,-250.0,0.00097696,2]
[426336829,1782321068000,-500.0,0.0009589,120]
[426336834,1782321068000,-876.42,0.0009589,120]
[426336826,1782321068000,-1249.46,0.0009589,120]
[426336836,1782321068000,-500.0,0.0009589,120]
[426336835,1782321068000,-481.42495411,0.0009589,120]
[426336843,1782321068000,-250.0,0.00097696,2]
[426336842,1782321068000,-250.0,0.00097696,2]
[426336844,1782321068000,-250.0,0.00097696,2]
[426336837,1782321068000,-977.13,0.0009589,120]
[426336838,1782321068000,-554.08,0.0009589,120]
[426336840,1782321068000,-1701.17472248,0.00097342,120]
[426336845,1782321068000,-250.0,0.00097696,2]
[426336839,1782321068000,-746.21,0.0009589,120]
[426336831,1782321068000,-625.0,0.0009589,120]
[426336878,1782321068000,-625.0,0.00101369,6]
[426336884,1782321068000,-750.0,0.00101369,120]
[426336876,1782321068000,-625.0,0.00101369,120]
[426336917,1782321068000,-625.0,0.00106849,120]
[426336909,1782321068000,-500.0,0.00106849,120]
[426336913,1782321068000,-1249.46,0.00106849,120]
[426336915,1782321068000,-1228.02,0.00106849,120]
[426336910,1782321068000,-500.0,0.00106849,120]
[426336911,1782321068000,-272.90254814,0.00106849,120]
[426336916,1782321068000,-500.0,0.00106849,120]
[426336914,1782321068000,-224.33541844,0.00106849,120]
[426336912,1782321068000,-500.0,0.00106849,120]
[426336919,1782321068000,-625.0,0.00106849,6]
[426336918,1782321068000,-594.31,0.00106849,120]
[426336921,1782321068000,-500.13100298,0.00106849,120]
[426336908,1782321068000,-5204.47402158,0.00104547,28]
[426336929,1782321068000,-1249.46,0.00109589,120]
[426336926,1782321068000,-248.13172221,0.00109589,120]
[426336922,1782321068000,-977.13,0.00106849,120]
[426336923,1782321068000,-554.08,0.00106849,120]
[426336928,1782321068000,-500.0,0.00109589,120]
[426336924,1782321068000,-746.21,0.00106849,120]
[426336927,1782321068000,-500.0,0.00109589,120]
[426336930,1782321068000,-1228.02,0.00109589,120]
[426336932,1782321068000,-625.0,0.00109589,120]
[426336931,1782321068000,-500.0,0.00109589,120]
[426336933,1782321068000,-594.31,0.00109589,120]
[426336934,1782321068000,-625.0,0.00109589,6]
[426336874,1782321068000,-500.0,0.00101369,120]
[426336925,1782321068000,-200.0,0.00109529,120]
[426336906,1782321068000,-554.08,0.00104109,120]
[426336920,1782321068000,-876.42,0.00106849,120]
[426336905,1782321068000,-977.13,0.00104109,120]
[426336877,1782321068000,-594.31,0.00101369,120]
[426336907,1782321068000,-746.21,0.00104109,120]
[426336879,1782321068000,-876.42,0.00101369,120]
[426336881,1782321068000,-977.13,0.00101369,120]
[426336882,1782321068000,-554.08,0.00101369,120]
[426336880,1782321068000,-500.0,0.00101369,120]
[426336888,1782321068000,-1000.0,0.00102112,120]
[426336887,1782321068000,-1000.0,0.00102112,120]
[426336883,1782321068000,-746.21,0.00101369,120]
[426336890,1782321068000,-154.33698135,0.00102683,66]
[426336885,1782321068000,-750.0,0.00101369,120]
[426336889,1782321068000,-418.0,0.00102112,120]
[426336886,1782321068000,-611.0,0.00101369,120]
[426336891,1782321068000,-500.0,0.00104109,120]
[426336893,1782321068000,-500.0,0.00104109,120]
[426336897,1782321068000,-1228.02,0.00104109,120]
[426336898,1782321068000,-488.54057806,0.00104109,120]
[426336902,1782321068000,-625.0,0.00104109,6]
[426336896,1782321068000,-500.0,0.00104109,120]
[426336894,1782321068000,-500.0,0.00104109,120]
[426336900,1782321068000,-625.0,0.00104109,120]
[426336901,1782321068000,-594.31,0.00104109,120]
[426336904,1782321068000,-500.0,0.00104109,120]
[426336895,1782321068000,-1249.46,0.00104109,120]
[426336892,1782321068000,-500.0,0.00104109,120]
[426336903,1782321068000,-876.42,0.00104109,120]
[426336899,1782321068000,-500.0,0.00104109,120]
[426336956,1782321069000,-625.0,0.00115068,120]
[426336949,1782321069000,-977.13,0.00112328,120]
[426336950,1782321069000,-554.08,0.00112328,120]
[426336955,1782321069000,-500.76994724,0.00115068,120]
[426336957,1782321069000,-594.31,0.00115068,120]
[426336962,1782321069000,-746.21,0.00115068,120]
[426336965,1782321069000,-152.0,0.00116563,2]
[426336959,1782321069000,-876.42,0.00115068,120]
[426336958,1782321069000,-625.0,0.00115068,6]
[426336963,1782321069000,-284.6000269,0.00116563,2]
[426336961,1782321069000,-554.08,0.00115068,120]
[426336948,1782321069000,-876.42,0.00112328,120]
[426336964,1782321069000,-152.0,0.00116563,2]
[426336947,1782321069000,-625.0,0.00112328,6]
[426336937,1782321069000,-554.08,0.00109589,120]
[426336945,1782321069000,-625.0,0.00112328,120]
[426336953,1782321069000,-1249.46,0.00115068,120]
[426336944,1782321069000,-500.0,0.00112328,120]
[426336954,1782321069000,-1228.02,0.00115068,120]
[426336951,1782321069000,-746.21,0.00112328,120]
[426336943,1782321069000,-1228.02,0.00112328,120]
[426336942,1782321069000,-1249.46,0.00112328,120]
[426336940,1782321069000,-295.02608343,0.00112328,120]
[426336935,1782321069000,-876.42,0.00109589,120]
[426336939,1782321069000,-154.33698135,0.00110968,70]
[426336936,1782321069000,-977.13,0.00109589,120]
[426336941,1782321069000,-500.0,0.00112328,120]
[426336938,1782321069000,-746.21,0.00109589,120]
[426336960,1782321069000,-977.13,0.00115068,120]
[426336946,1782321069000,-594.31,0.00112328,120]
[426336966,1782321069000,-152.0,0.00116563,2]
[426336952,1782321069000,-294.942389,0.00115068,120]
[426336967,1782321069000,-1249.6272248,0.00117808,120]
[426336998,1782321069000,500.0,0.00139922,120]
[426336997,1782321069000,500.0,0.00139922,120]
[426336996,1782321069000,500.0,0.00139922,120]
[426336995,1782321069000,500.0,0.00139922,120]
[426336994,1782321069000,500.0,0.00139922,120]
[426336993,1782321069000,-12910.42990391,0.0013714,120]
[426336987,1782321069000,-22005.0,0.00135,120]
[426336989,1782321069000,-17660.46203,0.00136,120]
[426336991,1782321069000,-159.43939438,0.00136722,7]
[426336988,1782321069000,-35668.269831,0.00135698,120]
[426336990,1782321069000,-11111.0,0.00136,120]
[426336992,1782321069000,-24715943.90962429,0.0013714,120]
[426336986,1782321069000,-33000.0,0.00135,120]
[426336983,1782321069000,-4097.14625349,0.0013,120]
[426336982,1782321069000,-154.33698135,0.0012888,77]
[426336968,1782321069000,-1228.22992144,0.00117808,120]
[426336977,1782321069000,-5957.863278,0.0012,120]
[426336981,1782321069000,-173.469,0.00126314,120]
[426336969,1782321069000,-625.0,0.00117808,120]
[426336971,1782321069000,-625.0,0.00117808,6]
[426336972,1782321069000,-876.49,0.00117808,120]
[426336974,1782321069000,-554.11735043,0.00117808,120]
[426336975,1782321069000,-746.25807958,0.00117808,120]
[426336973,1782321069000,-977.3302942,0.00117808,120]
[426336978,1782321069000,-5204.47402158,0.00121478,28]
[426336976,1782321069000,-154.33698135,0.001197,74]
[426336980,1782321069000,-152.0,0.00121862,2]
[426336979,1782321069000,-152.0,0.00121862,2]
[426336985,1782321069000,-10000.0,0.00134,4]
[426336984,1782321069000,-206.1539089,0.001321,30]
[426336970,1782321069000,-594.54513892,0.00117808,120]
[426337001,1782321070000,500.0,0.00139922,120]
[426336999,1782321070000,500.0,0.00139922,120]
[426337002,1782321070000,500.0,0.00139922,120]
[426337004,1782321070000,500.0,0.00139922,120]
[426337000,1782321070000,500.0,0.00139922,120]
[426337005,1782321070000,500.0,0.00139922,120]
[426337003,1782321070000,500.0,0.00139922,120]
[426337008,1782321070000,500.0,0.00139922,120]
[426337009,1782321070000,377.47830746,0.00139922,120]
[426337007,1782321070000,500.0,0.00139922,120]
[426337006,1782321070000,500.0,0.00139922,120]
[426337011,1782321076000,238.503379,0.00139922,120]
[426337010,1782321076000,500.0,0.00139922,120]
[426337013,1782321097000,500.0,0.00139922,120]
[426337012,1782321097000,500.0,0.00139922,120]
[426337014,1782321098000,534.60323827,0.00139922,120]
[426337015,1782321101000,500.0,0.00139922,120]
[426337017,1782321106000,500.0,0.00139922,120]
[426337016,1782321106000,500.0,0.00139922,120]
[426337018,1782321111000,485.41238703,0.00139922,120]
[426337019,1782321112000,500.0,0.00139922,120]
[426337020,1782321112000,500.0,0.00139922,120]
[426337021,1782321120000,68790.0,0.00139922,120]
[426337022,1782321123000,510.75122368,0.00139922,120]
[426337023,1782321124000,500.0,0.00139922,120]
[426337025,1782321133000,500.0,0.00139922,120]
[426337024,1782321133000,500.0,0.00139922,120]
[426337027,1782321134000,500.0,0.00139922,120]
[426337026,1782321134000,500.0,0.00139922,120]